[Event "African Online-ch Women 2021"]
[Site "Online"]
[Date "2021.02.01"]
[Round "5.7"]
[White "Miladi, Amen"]
[Black "Farnela, Nuzela Zacarias Musi"]
[Result "1-0"]
[ECO "C26"]
[WhiteElo "1802"]
[BlackElo "1431"]
[Annotator "NA RC"]
[PlyCount "95"]
[EventDate "2021.02.01"]
[EventType "swiss"]
[EventCountry "NET"]
[SourceTitle "playchess.com"]
[Source "ChessBase"]
[SourceQuality "1"]
[TimeControl "1500+10"]

1. e4 {[%emt 0:00:00]} e5 {[%emt 0:00:07]} 2. Nc3 {[%emt 0:00:06]} Nc6 {[%emt 0:00:08]} 3. g3 {[%emt 0:00:02]} Nf6 {[%emt 0:00:07]} 4. Bg2 {[%emt 0:00:02]} Bc5 {[%emt 0:00:11]} 5. Nge2 {[%emt 0:00:03]} d6 {[%emt 0:00:08]} 6. d3 {[%emt 0:00:02]} h6 {[%emt 0:00:10]} 7. O-O {[%emt 0:00:02]} a6 {[%emt 0:00:22]} 8. h3 {[%emt 0:00:08]} Be6 {[%emt 0:00:12]} 9. Kh2 {[%emt 0:00:02]} Qd7 {[%emt 0:00:31]} 10. a3 {[%emt 0:00:07]} g5 {[%emt 0:00:23]} 11. b4 {[%emt 0:00:27]} Ba7 {[%emt 0:00:19]} 12. b5 {[%emt 0:01:02]} Nd4 {[%emt 0:00:26]} 13. bxa6 {[%emt 0:01:05]} bxa6 {[%emt 0:00:13]} 14. Be3 {[%emt 0:00:08]} Bxh3 {[%emt 0:01:25]} 15. Bxd4 {[%emt 0:01:31]} Bxg2 {[%emt 0:00:09]} 16. Kxg2 {[%emt 0:00:55]} Bxd4 {[%emt 0:00:25]} 17. Nxd4 {[%emt 0:00:06]} exd4 {[%emt 0:00:04]} 18. Nd5 {[%emt 0:00:11]} Nxd5 {[%emt 0:00:49]} 19. exd5 {[%emt 0:00:04]} O-O {[%emt 0:00:06]} 20. Qh5 {[%emt 0:00:19]} Kg7 {[%emt 0:00:23]} 21. Rh1 {[%emt 0:01:00]} Rh8 {[%emt 0:00:22]} 22. Qf3 {[%emt 0:00:11]} Rae8 {[%emt 0:00:28]} 23. Rae1 {[%emt 0:00:39]} Re5 {[%emt 0:01:57]} 24. Rxe5 {[%emt 0:04:01]} dxe5 {[%emt 0:00:21]} 25. Qe4 {[%emt 0:00:03]} f6 {[%emt 0:01:03]} 26. f4 {[%emt 0:02:30]} gxf4 {[%emt 0:02:44]} 27. gxf4 {[%emt 0:00:05]} Qg4+ {[%emt 0:00:06]} 28. Kf2 {[%emt 0:00:02]} Kf7 {[%emt 0:01:11]} 29. fxe5 {[%emt 0:00:57]} Qxe4 {[%emt 0:00:12]} 30. dxe4 {[%emt 0:00:01]} fxe5 {[%emt 0:00:05]} 31. Rh5 {[%emt 0:00:10]} Ke7 {[%emt 0:01:36]} 32. Rxe5+ {[%emt 0:00:09]} Kd7 {[%emt 0:00:05]} 33. Kg3 {[%emt 0:00:22]} Re8 {[%emt 0:00:58]} 34. Rxe8 {[%emt 0:01:19]} Kxe8 {[%emt 0:00:05]} 35. Kf4 {[%emt 0:00:47]} Kd7 {[%emt 0:00:06]} 36. Ke5 {[%emt 0:00:31]} h5 {[%emt 0:01:26]} 37. Kxd4 {[%emt 0:00:12]} h4 {[%emt 0:00:12]} 38. Ke3 {[%emt 0:00:02]} Kd6 {[%emt 0:00:21]} 39. c4 {[%emt 0:00:07]} h3 {[%emt 0:00:05]} 40. Kf3 {[%emt 0:00:02]} Ke5 {[%emt 0:00:04]} 41. c5 {[%emt 0:00:09]} h2 {[%emt 0:00:31]} 42. Kg2 {[%emt 0:00:03]} Kxe4 {[%emt 0:00:06]} 43. d6 {[%emt 0:00:02]} Kd5 {[%emt 0:00:53]} 44. dxc7 {[%emt 0:00:06]} Kxc5 {[%emt 0:00:04]} 45. c8=Q+ {[%emt 0:00:03]} Kb5 {[%emt 0:00:06]} 46. Kxh2 {[%emt 0:00:03]} Ka4 {[%emt 0:00:03]} 47. Qxa6+ {[%emt 0:00:02]} Kb3 {[%emt 0:00:04]} 48. Kg3 {[%emt 0:00:02]} 1-0

[Event "African Online-ch Women 2021"]
[Site "Online"]
[Date "2021.02.01"]
[Round "5.8"]
[White "Shah, Riya"]
[Black "Vilhete, Vania Fausto Da T."]
[Result "1-0"]
[ECO "A45"]
[WhiteElo "1559"]
[BlackElo "1799"]
[Annotator "NA RC"]
[PlyCount "99"]
[EventDate "2021.02.01"]
[EventType "swiss"]
[EventCountry "NET"]
[SourceTitle "playchess.com"]
[Source "ChessBase"]
[SourceQuality "1"]
[TimeControl "1500+10"]

1. d4 {[%emt 0:00:00]} Nf6 {[%emt 0:00:06]} 2. e3 {[%emt 0:00:02]} e6 {[%emt 0:00:04]} 3. Bd3 {[%emt 0:00:02]} b6 {[%emt 0:00:09]} 4. f4 {[%emt 0:00:04]} Bb7 {[%emt 0:00:04]} 5. Nf3 {[%emt 0:00:02]} c5 {[%emt 0:00:05]} 6. c3 {[%emt 0:00:03]} Be7 {[%emt 0:00:08]} 7. O-O {[%emt 0:00:03]} h6 {[%emt 0:00:08]} 8. Nbd2 {[%emt 0:00:35]} d5 {[%emt 0:00:15]} 9. Ne5 {[%emt 0:00:05]} Nbd7 {[%emt 0:00:08]} 10. b3 {[%emt 0:00:27]} O-O {[%emt 0:00:13]} 11. Qf3 {[%emt 0:00:26]} Rc8 {[%emt 0:01:22]} 12. Bb2 {[%emt 0:02:10]} Qc7 {[%emt 0:03:31]} 13. Rac1 {[%emt 0:00:20]} c4 {[%emt 0:00:58]} 14. Bc2 {[%emt 0:00:50]} cxb3 {[%emt 0:00:18]} 15. axb3 {[%emt 0:00:06]} a5 {[%emt 0:00:55]} 16. Bd3 {[%emt 0:00:59]} Ra8 {[%emt 0:01:16]} 17. Qf2 {[%emt 0:01:42]} a4 {[%emt 0:02:05]} 18. bxa4 {[%emt 0:01:14]} Rxa4 {[%emt 0:00:20]} 19. c4 {[%emt 0:00:45]} Qb8 {[%emt 0:00:48]} 20. cxd5 {[%emt 0:00:52]} exd5 {[%emt 0:01:10]} 21. Rb1 {[%emt 0:01:17]} Ra2 {[%emt 0:01:16]} 22. Rfc1 {[%emt 0:01:32]} Qd8 {[%emt 0:00:34]} 23. Qf3 {[%emt 0:01:35]} Bb4 {[%emt 0:00:25]} 24. Qd1 {[%emt 0:00:11]} Bxd2 {[%emt 0:00:43]} 25. Qxd2 {[%emt 0:00:04]} Nxe5 {[%emt 0:03:09]} 26. fxe5 {[%emt 0:00:08]} Ne4 {[%emt 0:00:07]} 27. Bxe4 {[%emt 0:01:23]} dxe4 {[%emt 0:00:05]} 28. Qb4 {[%emt 0:00:09]} Ba6 {[%emt 0:00:22]} 29. Ra1 {[%emt 0:01:09]} Rxa1 {[%emt 0:00:24]} 30. Rxa1 {[%emt 0:00:04]} Bd3 {[%emt 0:00:10]} 31. Ba3 {[%emt 0:00:02]} Re8 {[%emt 0:00:11]} 32. Rc1 {[%emt 0:00:03]} Qg5 {[%emt 0:00:20]} 33. Qd2 {[%emt 0:00:26]} b5 {[%emt 0:00:12]} 34. Rc5 {[%emt 0:00:44]} Qf5 {[%emt 0:00:42]} 35. Qf2 {[%emt 0:00:10]} Qg4 {[%emt 0:00:27]} 36. h3 {[%emt 0:01:07]} Qe6 {[%emt 0:00:43]} 37. Rc7 {[%emt 0:00:39]} Qb3 {[%emt 0:01:27]} 38. Bd6 {[%emt 0:00:13]} Bc4 {[%emt 0:00:12]} 39. Qf4 {[%emt 0:01:43]} Qb1+ {[%emt 0:00:12]} 40. Kh2 {[%emt 0:00:03]} Qf1 {[%emt 0:00:28]} 41. Qg4 {[%emt 0:01:26]} Qb1 {[%emt 0:00:40]} 42. Ra7 {[%emt 0:01:02]} Re6 {[%emt 0:00:53]} 43. Ra8+ {[%emt 0:00:37]} Kh7 {[%emt 0:00:07]} 44. Qf5+ {[%emt 0:00:03]} Rg6 {[%emt 0:00:16]} 45. Qf2 {[%emt 0:01:07]} Bf1 {[%emt 0:02:43]} 46. g3 {[%emt 0:00:43]} Bc4 {[%emt 0:00:34]} 47. Ra7 {[%emt 0:00:25]} Qd1 {[%emt 0:00:27]} 48. Bc5 {[%emt 0:00:54]} Qh5 {[%emt 0:00:26]} 49. Kg2 {[%emt 0:01:42]} Be6 {[%emt 0:00:31]} 50. g4 {[%emt 0:00:40]} 1-0

[Event "African Online-ch Women 2021"]
[Site "Online"]
[Date "2021.02.01"]
[Round "5.9"]
[White "Wanjiru, Lucy"]
[Black "Malehloa, Likhomo"]
[Result "1-0"]
[ECO "C10"]
[WhiteElo "1623"]
[BlackElo "1331"]
[Annotator "NA RC"]
[PlyCount "103"]
[EventDate "2021.02.01"]
[EventType "swiss"]
[EventCountry "NET"]
[SourceTitle "playchess.com"]
[Source "ChessBase"]
[SourceQuality "1"]
[TimeControl "1500+10"]

1. e4 {[%emt 0:00:00]} e6 {[%emt 0:00:13]} 2. d4 {[%emt 0:00:10]} d5 {[%emt 0:00:05]} 3. Bd3 {[%emt 0:00:10]} Nf6 {[%emt 0:00:21]} 4. Nd2 {[%emt 0:00:13]} dxe4 {[%emt 0:00:11]} 5. Nxe4 {[%emt 0:00:07]} Be7 {[%emt 0:00:06]} 6. c3 {[%emt 0:00:04]} O-O {[%emt 0:00:08]} 7. Nf3 {[%emt 0:00:02]} b6 {[%emt 0:00:04]} 8. O-O {[%emt 0:00:03]} Bb7 {[%emt 0:00:04]} 9. Re1 {[%emt 0:00:05]} Nbd7 {[%emt 0:00:04]} 10. Bf4 {[%emt 0:00:14]} Rc8 {[%emt 0:00:04]} 11. Ne5 {[%emt 0:00:17]} c5 {[%emt 0:00:17]} 12. Nxd7 {[%emt 0:00:06]} Nxd7 {[%emt 0:00:17]} 13. Nd6 {[%emt 0:00:25]} Bxd6 {[%emt 0:00:16]} 14. Bxd6 {[%emt 0:00:03]} Re8 {[%emt 0:00:04]} 15. dxc5 {[%emt 0:00:13]} Nxc5 {[%emt 0:00:15]} 16. Bc2 {[%emt 0:00:41]} Qg5 {[%emt 0:01:15]} 17. Bg3 {[%emt 0:00:08]} Rcd8 {[%emt 0:00:11]} 18. Qc1 {[%emt 0:00:37]} Qd5 {[%emt 0:00:27]} 19. f3 {[%emt 0:00:17]} Qd2 {[%emt 0:00:13]} 20. Rd1 {[%emt 0:01:05]} Qxc1 {[%emt 0:00:09]} 21. Raxc1 {[%emt 0:00:04]} h6 {[%emt 0:01:01]} 22. b4 {[%emt 0:00:31]} Na6 {[%emt 0:00:21]} 23. Ba4 {[%emt 0:00:14]} Rxd1+ {[%emt 0:00:17]} 24. Rxd1 {[%emt 0:00:04]} Rc8 {[%emt 0:00:05]} 25. Rd7 {[%emt 0:01:12]} Bd5 {[%emt 0:02:18]} 26. Rxa7 {[%emt 0:01:06]} Ra8 {[%emt 0:04:07]} 27. Rxa8+ {[%emt 0:00:10]} Bxa8 {[%emt 0:00:05]} 28. Bb5 {[%emt 0:00:26]} Bb7 {[%emt 0:00:06]} 29. a4 {[%emt 0:00:20]} f6 {[%emt 0:00:30]} 30. Bc4 {[%emt 0:00:29]} Kf7 {[%emt 0:00:18]} 31. Bf2 {[%emt 0:01:02]} Nc7 {[%emt 0:00:33]} 32. Bxb6 {[%emt 0:00:08]} Nd5 {[%emt 0:00:03]} 33. Bxd5 {[%emt 0:00:35]} Bxd5 {[%emt 0:00:05]} 34. Kf2 {[%emt 0:00:12]} Ke7 {[%emt 0:00:03]} 35. Ke3 {[%emt 0:00:03]} Kd7 {[%emt 0:00:04]} 36. Kd4 {[%emt 0:00:07]} Kc6 {[%emt 0:00:05]} 37. Bc5 {[%emt 0:00:26]} Bb3 {[%emt 0:00:07]} 38. a5 {[%emt 0:00:05]} g6 {[%emt 0:00:05]} 39. c4 {[%emt 0:00:10]} e5+ {[%emt 0:00:13]} 40. Kc3 {[%emt 0:00:03]} Bd1 {[%emt 0:00:03]} 41. Be7 {[%emt 0:00:11]} f5 {[%emt 0:00:04]} 42. b5+ {[%emt 0:00:07]} Kb7 {[%emt 0:00:06]} 43. c5 {[%emt 0:01:21]} Be2 {[%emt 0:00:07]} 44. Kb4 {[%emt 0:00:25]} Bf1 {[%emt 0:00:07]} 45. g3 {[%emt 0:01:36]} Be2 {[%emt 0:00:05]} 46. Bd6 {[%emt 0:00:03]} Bxf3 {[%emt 0:02:16]} 47. a6+ {[%emt 0:00:19]} Kc8 {[%emt 0:00:22]} 48. Bxe5 {[%emt 0:00:06]} Bd5 {[%emt 0:00:25]} 49. b6 {[%emt 0:00:09]} Bc6 {[%emt 0:00:20]} 50. b7+ {[%emt 0:00:11]} Bxb7 {[%emt 0:00:03]} 51. axb7+ {[%emt 0:00:02]} Kxb7 {[%emt 0:00:02]} 52. Kb5 {[%emt 0:00:05]} 1-0

[Event "African Online-ch Women 2021"]
[Site "Online"]
[Date "2021.02.01"]
[Round "5.10"]
[White "Joao, Delfina"]
[Black "Ben Said, Safa"]
[Result "1-0"]
[ECO "C66"]
[WhiteElo "1727"]
[BlackElo "1577"]
[Annotator "NA RC"]
[PlyCount "89"]
[EventDate "2021.02.01"]
[EventType "swiss"]
[EventCountry "NET"]
[SourceTitle "playchess.com"]
[Source "ChessBase"]
[SourceQuality "1"]
[TimeControl "1500+10"]

1. e4 {[%emt 0:00:00]} e5 {[%emt 0:00:16]} 2. Nf3 {[%emt 0:00:07]} Nc6 {[%emt 0:00:03]} 3. Bb5 {[%emt 0:00:06]} Nf6 {[%emt 0:00:21]} 4. O-O {[%emt 0:00:12]} d6 {[%emt 0:00:08]} 5. d4 {[%emt 0:00:20]} Bd7 {[%emt 0:00:21]} 6. Bxc6 {[%emt 0:00:21]} bxc6 {[%emt 0:00:06]} 7. dxe5 {[%emt 0:00:07]} dxe5 {[%emt 0:00:10]} 8. Nxe5 {[%emt 0:00:28]} Bd6 {[%emt 0:00:06]} 9. Nxd7 {[%emt 0:00:12]} Qxd7 {[%emt 0:00:10]} 10. Re1 {[%emt 0:00:08]} Ng4 {[%emt 0:02:00]} 11. h3 {[%emt 0:02:24]} Rd8 {[%emt 0:01:53]} 12. Qxg4 {[%emt 0:00:43]} Qxg4 {[%emt 0:02:06]} 13. hxg4 {[%emt 0:00:05]} h5 {[%emt 0:00:02]} 14. gxh5 {[%emt 0:00:50]} Rxh5 {[%emt 0:00:04]} 15. g3 {[%emt 0:00:03]} Kd7 {[%emt 0:00:07]} 16. Be3 {[%emt 0:01:44]} Rdh8 {[%emt 0:00:05]} 17. Nc3 {[%emt 0:01:07]} g5 {[%emt 0:00:05]} 18. Kg2 {[%emt 0:00:55]} Rh2+ {[%emt 0:00:24]} 19. Kf3 {[%emt 0:00:05]} Rg8 {[%emt 0:00:35]} 20. Rg1 {[%emt 0:01:36]} g4+ {[%emt 0:00:59]} 21. Ke2 {[%emt 0:00:08]} Re8 {[%emt 0:00:06]} 22. Rad1 {[%emt 0:00:13]} Kc8 {[%emt 0:00:07]} 23. Bd4 {[%emt 0:03:08]} f5 {[%emt 0:00:17]} 24. Bxa7 {[%emt 0:00:27]} c5 {[%emt 0:00:30]} 25. Rd5 {[%emt 0:00:57]} fxe4 {[%emt 0:00:14]} 26. Ke3 {[%emt 0:01:07]} Rf8 {[%emt 0:00:57]} 27. Nxe4 {[%emt 0:00:11]} Rh6 {[%emt 0:02:33]} 28. Bxc5 {[%emt 0:00:26]} Rf3+ {[%emt 0:00:32]} 29. Kd4 {[%emt 0:01:43]} Bxc5+ {[%emt 0:00:27]} 30. Rxc5 {[%emt 0:00:32]} Re6 {[%emt 0:00:12]} 31. Re5 {[%emt 0:02:10]} Ra6 {[%emt 0:00:09]} 32. Nc5 {[%emt 0:01:18]} Rd6+ {[%emt 0:00:32]} 33. Kc4 {[%emt 0:00:48]} Kb8 {[%emt 0:00:07]} 34. Ne4 {[%emt 0:01:23]} Ra6 {[%emt 0:00:14]} 35. Rb5+ {[%emt 0:00:17]} Kc8 {[%emt 0:00:09]} 36. a3 {[%emt 0:00:10]} Ra4+ {[%emt 0:00:05]} 37. Rb4 {[%emt 0:00:06]} Ra6 {[%emt 0:00:08]} 38. Rh1 {[%emt 0:00:15]} Rc6+ {[%emt 0:00:30]} 39. Nc5 {[%emt 0:00:42]} Kd8 {[%emt 0:00:05]} 40. Rh2 {[%emt 0:00:30]} Rf5 {[%emt 0:00:19]} 41. Rb5 {[%emt 0:00:14]} Re5 {[%emt 0:00:52]} 42. Kd4 {[%emt 0:00:18]} Re2 {[%emt 0:00:22]} 43. Rb8+ {[%emt 0:00:20]} Ke7 {[%emt 0:00:14]} 44. Rh7+ {[%emt 0:00:08]} Kd6 {[%emt 0:00:24]} 45. Rd8# {[%emt 0:00:22]} 1-0

[Event "African Online-ch Women 2021"]
[Site "Online"]
[Date "2021.02.01"]
[Round "5.11"]
[White "Botlhole, Kgalalelo"]
[Black "Du Plessis, Anika"]
[Result "1-0"]
[ECO "A22"]
[WhiteElo "1705"]
[BlackElo "1541"]
[Annotator "NA RC"]
[PlyCount "79"]
[EventDate "2021.02.01"]
[EventType "swiss"]
[EventCountry "NET"]
[SourceTitle "playchess.com"]
[Source "ChessBase"]
[SourceQuality "1"]
[TimeControl "1500+10"]

1. c4 {[%emt 0:00:00]} e5 {[%emt 0:00:09]} 2. g3 {[%emt 0:00:04]} Nf6 {[%emt 0:00:04]} 3. Bg2 {[%emt 0:00:03]} Be7 {[%emt 0:00:06]} 4. d3 {[%emt 0:00:07]} O-O {[%emt 0:00:09]} 5. Nf3 {[%emt 0:00:02]} d6 {[%emt 0:00:18]} 6. O-O {[%emt 0:00:07]} Nbd7 {[%emt 0:00:35]} 7. Nc3 {[%emt 0:00:17]} c6 {[%emt 0:00:09]} 8. Rb1 {[%emt 0:00:05]} d5 {[%emt 0:00:06]} 9. cxd5 {[%emt 0:00:13]} cxd5 {[%emt 0:00:02]} 10. Bg5 {[%emt 0:00:06]} h6 {[%emt 0:00:07]} 11. Bxf6 {[%emt 0:00:05]} Nxf6 {[%emt 0:00:10]} 12. Nxe5 {[%emt 0:00:05]} d4 {[%emt 0:00:34]} 13. Ne4 {[%emt 0:00:18]} Nxe4 {[%emt 0:01:16]} 14. Bxe4 {[%emt 0:00:35]} Qa5 {[%emt 0:01:02]} 15. Nc4 {[%emt 0:03:17]} Qa6 {[%emt 0:01:39]} 16. a3 {[%emt 0:00:17]} Be6 {[%emt 0:02:02]} 17. Nd2 {[%emt 0:00:25]} Rad8 {[%emt 0:02:25]} 18. Bg2 {[%emt 0:00:12]} Bg4 {[%emt 0:01:43]} 19. Nf3 {[%emt 0:00:26]} f5 {[%emt 0:00:58]} 20. Ne5 {[%emt 0:00:28]} Bh5 {[%emt 0:00:27]} 21. Qb3+ {[%emt 0:00:05]} Kh8 {[%emt 0:00:07]} 22. Qxb7 {[%emt 0:00:12]} Qxb7 {[%emt 0:00:06]} 23. Bxb7 {[%emt 0:00:05]} Bd6 {[%emt 0:00:30]} 24. Bf3 {[%emt 0:01:17]} Be8 {[%emt 0:02:32]} 25. Nc4 {[%emt 0:00:33]} Bb8 {[%emt 0:00:17]} 26. b4 {[%emt 0:00:18]} f4 {[%emt 0:00:03]} 27. Rbc1 {[%emt 0:00:36]} fxg3 {[%emt 0:00:04]} 28. hxg3 {[%emt 0:00:04]} Bg6 {[%emt 0:00:18]} 29. Na5 {[%emt 0:00:20]} Bxd3 {[%emt 0:01:15]} 30. Kg2 {[%emt 0:00:39]} Ba6 {[%emt 0:01:10]} 31. Nc6 {[%emt 0:00:26]} Rc8 {[%emt 0:00:34]} 32. Nxd4 {[%emt 0:00:26]} Rxc1 {[%emt 0:00:11]} 33. Rxc1 {[%emt 0:00:04]} Be5 {[%emt 0:00:06]} 34. Ne6 {[%emt 0:01:12]} Rf7 {[%emt 0:00:52]} 35. Nc5 {[%emt 0:00:12]} Bb5 {[%emt 0:00:58]} 36. Rd1 {[%emt 0:00:31]} g5 {[%emt 0:00:19]} 37. Rd8+ {[%emt 0:00:10]} Kg7 {[%emt 0:00:02]} 38. Bd5 {[%emt 0:00:22]} Re7 {[%emt 0:00:36]} 39. e4 {[%emt 0:00:12]} Be2 {[%emt 0:00:53]} 40. Nd7 {[%emt 0:00:56]} 1-0

[Event "African Online-ch Women 2021"]
[Site "Online"]
[Date "2021.02.01"]
[Round "5.12"]
[White "Maingi, Sasha"]
[Black "Ibtihal Mohammed"]
[Result "1-0"]
[ECO "B30"]
[WhiteElo "1599"]
[BlackElo "1491"]
[Annotator "NA RC"]
[PlyCount "33"]
[EventDate "2021.02.01"]
[EventType "swiss"]
[EventCountry "NET"]
[SourceTitle "playchess.com"]
[Source "ChessBase"]
[SourceQuality "1"]
[TimeControl "1500+10"]

1. e4 {[%emt 0:00:00]} c5 {[%emt 0:00:06]} 2. Nf3 {[%emt 0:00:10]} Nc6 {[%emt 0:00:04]} 3. g3 {[%emt 0:00:08]} e5 {[%emt 0:00:10]} 4. Bg2 {[%emt 0:00:06]} Nf6 {[%emt 0:00:05]} 5. d3 {[%emt 0:00:09]} Be7 {[%emt 0:00:07]} 6. O-O {[%emt 0:00:06]} O-O {[%emt 0:00:03]} 7. Re1 {[%emt 0:00:19]} h6 {[%emt 0:00:07]} 8. Nbd2 {[%emt 0:00:08]} b5 {[%emt 0:00:11]} 9. c3 {[%emt 0:00:08]} d6 {[%emt 0:00:05]} 10. Nf1 {[%emt 0:00:19]} Be6 {[%emt 0:00:11]} 11. Ne3 {[%emt 0:00:28]} Qd7 {[%emt 0:00:09]} 12. Nh4 {[%emt 0:00:41]} Bh3 {[%emt 0:00:16]} 13. Nhf5 {[%emt 0:00:15]} Bxg2 {[%emt 0:00:49]} 14. Kxg2 {[%emt 0:00:11]} Nh7 {[%emt 0:00:09]} 15. Qg4 {[%emt 0:00:43]} Bf6 {[%emt 0:00:15]} 16. Nxh6+ {[%emt 0:00:22]} Kh8 {[%emt 0:02:31]} 17. Qxd7 {[%emt 0:00:08]} 1-0

[Event "African Online-ch Women 2021"]
[Site "Online"]
[Date "2021.02.01"]
[Round "5.13"]
[White "Karania, Saloni"]
[Black "Ndirangu, Joyce Nyaruai"]
[Result "0-1"]
[ECO "E21"]
[WhiteElo "1304"]
[BlackElo "1659"]
[Annotator "NA RC"]
[PlyCount "58"]
[EventDate "2021.02.01"]
[EventType "swiss"]
[EventCountry "NET"]
[SourceTitle "playchess.com"]
[Source "ChessBase"]
[SourceQuality "1"]
[TimeControl "1500+10"]

1. d4 {[%emt 0:00:00]} Nf6 {[%emt 0:00:09]} 2. c4 {[%emt 0:00:05]} e6 {[%emt 0:00:04]} 3. Nc3 {[%emt 0:00:13]} b6 {[%emt 0:00:07]} 4. Nf3 {[%emt 0:00:05]} Bb7 {[%emt 0:00:03]} 5. e3 {[%emt 0:00:22]} Bb4 {[%emt 0:00:33]} 6. Bd2 {[%emt 0:00:09]} O-O {[%emt 0:00:08]} 7. a3 {[%emt 0:00:07]} Be7 {[%emt 0:00:52]} 8. Qc2 {[%emt 0:00:21]} c5 {[%emt 0:00:10]} 9. Bd3 {[%emt 0:00:44]} cxd4 {[%emt 0:00:20]} 10. exd4 {[%emt 0:00:25]} d5 {[%emt 0:00:11]} 11. cxd5 {[%emt 0:01:21]} Bxd5 {[%emt 0:00:06]} 12. Nxd5 {[%emt 0:00:16]} Qxd5 {[%emt 0:00:03]} 13. O-O {[%emt 0:00:26]} Nc6 {[%emt 0:00:33]} 14. Be3 {[%emt 0:01:39]} Rac8 {[%emt 0:00:11]} 15. Qb1 {[%emt 0:00:27]} Bd6 {[%emt 0:01:53]} 16. h3 {[%emt 0:01:56]} g6 {[%emt 0:02:33]} 17. Rd1 {[%emt 0:03:07]} Bb8 {[%emt 0:02:02]} 18. Bg5 {[%emt 0:00:56]} Nh5 {[%emt 0:03:30]} 19. Be4 {[%emt 0:00:37]} Qd6 {[%emt 0:00:06]} 20. Qd3 {[%emt 0:03:20]} f5 {[%emt 0:00:14]} 21. Bxc6 {[%emt 0:00:40]} Rxc6 {[%emt 0:00:18]} 22. Ne5 {[%emt 0:01:12]} Rcc8 {[%emt 0:00:17]} 23. g4 {[%emt 0:01:32]} fxg4 {[%emt 0:00:27]} 24. hxg4 {[%emt 0:00:07]} Nf4 {[%emt 0:00:07]} 25. Qe3 {[%emt 0:01:10]} Nd5 {[%emt 0:00:09]} 26. Qh3 {[%emt 0:01:59]} Rc2 {[%emt 0:01:54]} 27. Bh4 {[%emt 0:01:28]} Nf4 {[%emt 0:00:45]} 28. Qe3 {[%emt 0:00:59]} Qd5 {[%emt 0:01:12]} 29. Bg3 {[%emt 0:01:40]} Qg2# {[%emt 0:00:05]} 0-1

[Event "African Online-ch Women 2021"]
[Site "Online"]
[Date "2021.02.01"]
[Round "5.14"]
[White "Sitoe, Cheila Andre"]
[Black "Namangale, Susan"]
[Result "0-1"]
[ECO "B06"]
[WhiteElo "1588"]
[BlackElo "1344"]
[Annotator "NA RC"]
[PlyCount "58"]
[EventDate "2021.02.01"]
[EventType "swiss"]
[EventCountry "NET"]
[SourceTitle "playchess.com"]
[Source "ChessBase"]
[SourceQuality "1"]
[TimeControl "1500+10"]

1. e4 {[%emt 0:00:00]} g6 {[%emt 0:00:10]} 2. d4 {[%emt 0:00:22]} d6 {[%emt 0:00:16]} 3. Nf3 {[%emt 0:03:01]} Bg7 {[%emt 0:00:29]} 4. Nc3 {[%emt 0:00:20]} Nd7 {[%emt 0:00:49]} 5. Bc4 {[%emt 0:00:26]} Nb6 {[%emt 0:01:08]} 6. Bb3 {[%emt 0:00:14]} Nf6 {[%emt 0:00:16]} 7. Bg5 {[%emt 0:00:16]} O-O {[%emt 0:00:12]} 8. O-O {[%emt 0:00:23]} c6 {[%emt 0:00:51]} 9. Qd2 {[%emt 0:00:13]} Bg4 {[%emt 0:00:40]} 10. Nh4 {[%emt 0:01:11]} d5 {[%emt 0:00:36]} 11. h3 {[%emt 0:00:29]} Bc8 {[%emt 0:00:34]} 12. e5 {[%emt 0:00:09]} Ne4 {[%emt 0:00:27]} 13. Nxe4 {[%emt 0:00:10]} dxe4 {[%emt 0:00:07]} 14. c3 {[%emt 0:00:16]} Be6 {[%emt 0:00:50]} 15. Bh6 {[%emt 0:00:17]} Qd7 {[%emt 0:00:53]} 16. Bxg7 {[%emt 0:00:15]} Kxg7 {[%emt 0:00:08]} 17. Qf4 {[%emt 0:00:31]} Bd5 {[%emt 0:01:00]} 18. Bc2 {[%emt 0:01:34]} f6 {[%emt 0:01:00]} 19. g4 {[%emt 0:01:25]} g5 {[%emt 0:01:12]} 20. Nf5+ {[%emt 0:00:07]} Kh8 {[%emt 0:01:38]} 21. Qe3 {[%emt 0:00:16]} Nc4 {[%emt 0:01:23]} 22. Qc1 {[%emt 0:00:28]} Rg8 {[%emt 0:00:52]} 23. b3 {[%emt 0:00:21]} Nb6 {[%emt 0:01:10]} 24. Qe3 {[%emt 0:00:10]} e6 {[%emt 0:00:30]} 25. Ng3 {[%emt 0:00:07]} f5 {[%emt 0:00:53]} 26. gxf5 {[%emt 0:00:19]} exf5 {[%emt 0:00:07]} 27. Nh5 {[%emt 0:00:14]} f4 {[%emt 0:00:30]} 28. Qe1 {[%emt 0:00:50]} Qxh3 {[%emt 0:00:22]} 29. Ng3 {[%emt 0:00:34]} f3 {[%emt 0:00:28]} 0-1